bitfinex-derivatives/quotes_BTCF0:USTF0_20251108
["timestamp","ask_amount","ask_price","bid_price","bid_amount"]
[1762612652576,1.37422977,102020.0,102010.0,0.86918]
[1762612653073,1.37422977,102020.0,102010.0,0.87218]
[1762612653880,1.37522977,102020.0,102010.0,0.86918]
[1762612654276,1.37522977,102020.0,102010.0,0.86718]
[1762612654582,1.46509862,102020.0,102010.0,0.86718]
[1762612655479,1.37622977,102020.0,102010.0,0.86718]
[1762612655875,1.21753977,102020.0,102010.0,1.17438]
[1762612656080,1.21853977,102020.0,102010.0,1.17438]
[1762612656586,1.21853977,102020.0,102010.0,1.02478]
[1762612656976,1.28882866,102020.0,102010.0,1.02478]
[1762612657885,1.43775866,102020.0,102010.0,1.02478]
[1762612658187,1.36746977,102020.0,102010.0,1.02478]
[1762612658684,1.21853977,102020.0,102010.0,1.17438]
[1762612660389,0.75698874,102020.0,102010.0,1.17438]
[1762612660981,0.75698874,102020.0,102010.0,1.272454]
[1762612661182,0.75698874,102020.0,102010.0,1.17438]
[1762612662981,0.75698874,102020.0,102010.0,1.02478]
[1762612664293,0.89838874,102020.0,102010.0,0.86718]
[1762612665086,0.75698874,102020.0,102010.0,1.01916]
[1762612667396,0.75698874,102020.0,102010.0,1.117234]
[1762612668394,0.51764874,102020.0,102010.0,1.117234]
[1762612668790,0.75414874,102020.0,102010.0,1.01916]
[1762612670392,0.75414874,102020.0,102010.0,1.117234]
[1762612670801,0.75414874,102020.0,102010.0,1.01916]
[1762612671100,0.25870874,102020.0,102010.0,1.117234]
[1762612671688,0.49407874,102020.0,102010.0,1.117234]
[1762612672096,0.25870874,102020.0,102010.0,1.117234]
[1762612672397,0.25870874,102020.0,102010.0,1.362314]
[1762612673002,0.49407874,102020.0,102010.0,1.362314]
[1762612673297,0.49407874,102020.0,102010.0,1.117234]
[1762612673495,0.49407874,102020.0,102010.0,1.26424]
[1762612673701,0.25870874,102020.0,102010.0,1.26424]
[1762612674291,0.49407874,102020.0,102010.0,1.26424]
[1762612674690,0.49407874,102020.0,102010.0,1.01916]
[1762612674901,0.73057874,102020.0,102010.0,1.26424]
[1762612675293,0.73057874,102020.0,102010.0,1.01916]
[1762612675592,0.73057874,102020.0,102010.0,1.26424]
[1762612676199,0.73057874,102020.0,102010.0,1.01916]
[1762612676392,0.73057874,102020.0,102010.0,1.26424]
[1762612676701,0.88684874,102020.0,102010.0,0.86718]
[1762612677003,0.88684874,102020.0,102010.0,1.01678]
[1762612677590,0.88584874,102020.0,102010.0,1.01678]
[1762612678398,0.88584874,102020.0,102010.0,1.1454]
[1762612679599,0.88584874,102020.0,102010.0,1.1464]
[1762612680202,0.88584874,102020.0,102010.0,1.01778]
[1762612680398,0.95613763,102020.0,102010.0,1.01778]
[1762612681501,1.39806866,102020.0,102010.0,1.01778]
[1762612681705,1.32777977,102020.0,102010.0,0.3618]
[1762612682702,1.32777977,102020.0,102010.0,0.85037]
[1762612683006,1.41564862,102020.0,102010.0,0.85037]
[1762612683505,1.32777977,102020.0,102010.0,0.85037]
[1762612683801,1.41564862,102020.0,102010.0,0.85037]
[1762612683998,1.26159599,102020.0,102010.0,0.98979]
[1762612684198,0.81966496,102020.0,102010.0,0.98979]
[1762612684797,0.95631496,102020.0,102010.0,0.98979]
[1762612685004,1.39824599,102020.0,102010.0,0.85037]
[1762612686503,0.95631496,102020.0,102010.0,0.85037]
[1762612686709,1.39824599,102020.0,102010.0,0.85037]
[1762612687599,1.32777977,102020.0,102010.0,0.3618]
[1762612687794,1.41564862,102020.0,102010.0,0.3618]
[1762612688808,1.41564862,102020.0,102010.0,0.85037]
[1762612689411,1.32777977,102020.0,102010.0,0.85037]
[1762612691509,1.32777977,102020.0,102010.0,0.99997]
[1762612692105,1.32777977,102020.0,102010.0,0.1506]
[1762612692302,1.3983001,102020.0,102010.0,0.1506]
[1762612692607,1.41564862,102020.0,102010.0,0.1506]
[1762612692811,1.45069428,102020.0,102010.0,0.1506]
[1762612694115,1.45269428,102020.0,102010.0,0.1496]
[1762612697425,0.24307,102010.0,102000.0,0.51054702]
[1762612697622,1.15433458,102010.0,102000.0,0.75518702]
[1762612697922,1.40431328,102010.0,102000.0,0.99911702]
[1762612699019,1.25004596,102010.0,102000.0,1.13853702]
[1762612699221,1.38669596,102010.0,102000.0,1.13853702]
[1762612699818,1.38669596,102010.0,102000.0,1.00011702]
[1762612700024,1.31624973,102010.0,102000.0,1.00011702]
[1762612700324,1.31624973,102010.0,102000.0,0.99911702]
[1762612701322,1.40431328,102010.0,102000.0,0.99911702]
[1762612702722,1.40631328,102010.0,102000.0,0.99911702]
[1762612703323,1.34011328,102010.0,102000.0,1.13853702]
[1762612703524,1.25204973,102010.0,102000.0,1.13853702]
[1762612703720,1.38869973,102010.0,102000.0,1.13853702]
[1762612703921,1.38869973,102010.0,102000.0,0.99911702]
[1762612704123,1.31824973,102010.0,102000.0,0.99911702]
[1762612704323,1.40631328,102010.0,102000.0,0.99911702]
[1762612704519,1.38669328,102010.0,102000.0,0.99911702]
[1762612704724,1.40631328,102010.0,102000.0,0.99911702]
[1762612707519,1.40631328,102010.0,102000.0,0.75518702]
[1762612707819,1.40631328,102010.0,102000.0,0.51054702]
[1762612708025,1.40631328,102010.0,102000.0,0.94802702]
[1762612709026,1.40631328,102010.0,102000.0,0.79842702]
[1762612709323,1.52922779,102010.0,102000.0,0.79842702]
[1762612709524,1.44116424,102010.0,102000.0,0.79842702]
[1762612710117,1.44116424,102010.0,102000.0,0.36094702]
[1762612710918,1.44116424,102010.0,102000.0,0.57925702]
[1762612713323,1.44116424,102010.0,102000.0,0.00014702]
[1762612714124,1.52926054,102010.0,102000.0,0.00014702]
[1762612714424,1.31824973,102010.0,102000.0,0.00014702]
[1762612714626,1.31824973,102010.0,102000.0,0.79842702]
[1762612714815,1.40635888,102010.0,102000.0,0.79842702]
[1762612715015,1.40635888,102010.0,102000.0,0.43762702]
[1762612715216,1.44116424,102010.0,102000.0,0.00014702]
[1762612715522,1.44116424,102010.0,102000.0,0.43762702]
[1762612715914,1.44116424,102010.0,102000.0,0.00014702]
[1762612717628,1.44116424,102010.0,102000.0,0.21845702]
[1762612718728,0.99923321,102010.0,102000.0,0.21845702]
[1762612719026,1.44116424,102010.0,102000.0,0.21845702]
[1762612719220,1.44116424,102010.0,102000.0,0.43762702]
[1762612720118,1.44116424,102010.0,102000.0,0.57925702]
[1762612721926,1.44116424,102010.0,102000.0,0.79842702]
[1762612722330,0.99923321,102010.0,102000.0,0.79842702]
[1762612722633,1.44116424,102010.0,102000.0,0.79842702]
[1762612724532,1.42154424,102010.0,102000.0,0.79842702]
[1762612724730,1.44116424,102010.0,102000.0,0.79842702]
[1762612726232,0.99923321,102010.0,102000.0,0.79842702]
[1762612726433,1.44116424,102010.0,102000.0,0.79842702]
[1762612727735,0.99923321,102010.0,102000.0,0.79842702]
[1762612727933,1.44116424,102010.0,102000.0,0.79842702]
[1762612729131,0.17599117,102030.0,102010.0,0.0980659]
[1762612729334,0.68755117,102030.0,102010.0,0.46859795]
[1762612729630,0.68755117,102030.0,102010.0,0.09821]
[1762612729631,0.25865437,102020.0,102010.0,0.09821]
[1762612729832,0.56446964,102020.0,102010.0,0.09821]
[1762612730025,0.56446964,102020.0,102010.0,0.7216]
[1762612730026,0.67680166,102020.0,102010.0,0.7216]
[1762612730234,0.67680166,102020.0,102010.0,0.8845]
[1762612730426,0.67674721,102020.0,102010.0,1.72958]
[1762612730822,0.67674721,102020.0,102010.0,0.7216]
[1762612731131,0.67674721,102020.0,102010.0,0.96668]
[1762612731132,0.82308363,102020.0,102010.0,0.96668]
[1762612731440,0.82308363,102020.0,102010.0,0.7216]
[1762612732227,0.82308363,102020.0,102010.0,0.7256]
[1762612732438,0.82308363,102020.0,102010.0,0.97068]
[1762612732644,0.8054382,102020.0,102010.0,1.068754]
[1762612732833,0.29388162,102020.0,102010.0,0.986034]
[1762612733133,0.29388162,102020.0,102010.0,1.231114]
[1762612733531,0.29388162,102020.0,102010.0,0.88796]
[1762612733734,0.25866844,102020.0,102010.0,0.986034]
[1762612733930,0.14163368,102020.0,102010.0,1.229114]
[1762612734436,0.58226436,102030.0,102020.0,0.16236]
[1762612734636,0.97325805,102030.0,102020.0,0.52316]
[1762612734830,1.22631114,102030.0,102020.0,0.52316]
[1762612735230,0.25320011,102030.0,102020.0,0.52316]
[1762612735433,0.25320011,102030.0,102020.0,0.7682]
[1762612735834,0.46969011,102030.0,102020.0,0.7682]
[1762612736227,0.46969011,102030.0,102020.0,0.52316]
[1762612736541,0.46969011,102030.0,102020.0,0.7682]
[1762612736728,0.46969011,102030.0,102020.0,0.7692]
[1762612736928,0.67422011,102030.0,102020.0,0.7692]
[1762612737124,0.67422011,102030.0,102020.0,0.52416]
[1762612737329,0.67422011,102030.0,102020.0,0.52516]
[1762612737526,0.67422011,102030.0,102020.0,0.7712]
[1762612738341,0.67422011,102030.0,102020.0,0.9208]
[1762612738946,0.62278734,102060.0,102030.0,0.24504]
[1762612739143,0.55223,102060.0,102030.0,0.24504]
[1762612739330,0.10672716,102050.0,102040.0,0.3430452]
[1762612739534,0.10672716,102050.0,102030.0,0.0980494]
[1762612739829,0.10672716,102050.0,102040.0,0.4588378]
[1762612740033,0.50780576,102070.0,102040.0,0.6058]
[1762612740230,0.14715278,102070.0,102050.0,0.3429886]
[1762612740447,0.10995513,102060.0,102050.0,0.73039155]
[1762612740634,0.25710791,102070.0,102050.0,0.63235595]
[1762612740833,0.50795278,102070.0,102050.0,0.24496]
[1762612741143,0.46531003,102070.0,102060.0,0.342986]
[1762612741338,0.46531003,102070.0,102060.0,0.24496]
[1762612741540,1.01754003,102070.0,102060.0,0.02669562]
[1762612741744,0.55223,102060.0,102050.0,0.00014702]
[1762612742046,0.91303,102060.0,102050.0,0.02685001]
[1762612742230,0.60127969,102060.0,102050.0,0.12488561]
[1762612742433,0.50590195,102070.0,102050.0,0.36984561]
[1762612742639,0.50590195,102070.0,102050.0,0.34314262]
[1762612742843,0.10926969,102060.0,102050.0,0.34314262]
[1762612743046,0.61517164,102070.0,102060.0,0.098026]
[1762612743243,0.50590195,102070.0,102060.0,0.098026]
[1762612743539,0.25200536,102070.0,102060.0,0.703786]
[1762612743737,0.12179536,102070.0,102060.0,0.703786]
[1762612743936,0.25300536,102070.0,102060.0,0.098026]
[1762612744335,0.49796536,102070.0,102060.0,0.098026]
[1762612744535,0.3477,102060.0,102050.0,0.60590702]
[1762612744737,1.15799,102060.0,102050.0,0.00014702]
[1762612744943,1.01599173,102060.0,102050.0,0.00014702]
[1762612745144,1.26095173,102060.0,102050.0,0.00014702]
[1762612745443,1.01599173,102060.0,102050.0,0.00014702]
[1762612746245,1.26095173,102060.0,102050.0,0.00014702]
[1762612746444,1.01599173,102060.0,102050.0,0.00014702]
[1762612746648,1.26095173,102060.0,102050.0,0.00014702]
[1762612747747,1.01599173,102060.0,102050.0,0.00014702]
[1762612748841,1.26095173,102060.0,102050.0,0.00014702]
[1762612749041,1.01599173,102060.0,102050.0,0.00014702]
[1762612749747,1.26095173,102060.0,102050.0,0.09818252]
[1762612749951,1.01599173,102060.0,102050.0,0.09818252]
[1762612750148,1.28057173,102060.0,102050.0,0.09818252]
[1762612750549,0.90015173,102060.0,102050.0,0.09818252]
[1762612750744,0.47913173,102060.0,102050.0,0.09818252]
[1762612750945,0.23417173,102060.0,102050.0,0.70394252]
[1762612751245,0.10296173,102060.0,102050.0,0.70394252]
[1762612751449,0.07941976,102060.0,102050.0,0.70394252]
[1762612752849,0.32437976,102060.0,102050.0,0.45898252]
[1762612753050,0.21062976,102060.0,102050.0,0.70394252]
[1762612753345,0.45558976,102060.0,102050.0,0.45898252]
[1762612753550,0.21062976,102060.0,102050.0,0.86684252]
[1762612753753,0.87660976,102060.0,102050.0,0.62188252]
[1762612753945,0.63164976,102060.0,102050.0,0.50604252]
[1762612754247,0.67207976,102060.0,102050.0,0.62188252]
[1762612754447,0.40357737,102060.0,102050.0,0.89357934]
[1762612754646,0.64853737,102060.0,102050.0,0.64861934]
[1762612754855,0.18708737,102060.0,102050.0,0.89357934]
[1762612755039,0.43204737,102060.0,102050.0,0.74682934]
[1762612755244,0.14510195,102070.0,102060.0,0.1962359]
[1762612755450,0.01389195,102070.0,102060.0,0.5837779]
[1762612755651,0.25605835,102070.0,102060.0,0.8287379]
[1762612756046,0.25605835,102070.0,102060.0,0.9514359]
[1762612756047,0.50101835,102070.0,102060.0,0.9514359]
[1762612756358,0.00014702,102070.0,102060.0,1.59164693]
[1762612756554,0.55223,102090.0,102070.0,0.3591212]
[1762612756757,0.13121,102080.0,102070.0,1.10079733]
[1762612757058,0.65959302,102080.0,102070.0,0.63079733]
[1762612757241,0.65959302,102080.0,102070.0,0.38587733]
[1762612757456,0.23857302,102080.0,102070.0,0.63079733]
[1762612757762,0.59937302,102080.0,102070.0,0.63179733]
[1762612757952,0.59937302,102080.0,102070.0,0.63279733]
[1762612758253,0.10736302,102080.0,102070.0,0.38787733]
[1762612758453,0.23857302,102080.0,102070.0,0.46989733]
[1762612758657,0.46816302,102080.0,102070.0,0.46989733]
[1762612758854,0.46816302,102080.0,102070.0,0.37188103]
[1762612759254,0.45506302,102080.0,102070.0,0.21535105]
[1762612759561,0.59937302,102080.0,102070.0,0.42490854]
[1762612760163,1.02039302,102080.0,102070.0,0.3349175]
[1762612760355,1.02039302,102080.0,102070.0,0.36169597]
[1762612760658,0.59937302,102080.0,102070.0,0.11677597]
[1762612760852,0.59937302,102080.0,102070.0,0.36169597]
[1762612761051,0.81586302,102080.0,102070.0,0.36169597]
[1762612761253,0.81586302,102080.0,102070.0,0.11877597]
[1762612761463,0.81586302,102080.0,102070.0,0.36469597]
[1762612761759,0.81586302,102080.0,102070.0,0.46271237]
[1762612762059,1.02039302,102080.0,102070.0,0.46271237]
[1762612762263,1.02039302,102080.0,102070.0,0.32969854]
[1762612762651,1.02039302,102080.0,102070.0,0.11978551]
[1762612762852,1.02039302,102080.0,102070.0,0.36470551]
[1762612763151,1.04001302,102080.0,102070.0,0.36470551]
[1762612763348,1.48194405,102080.0,102070.0,0.0930248]
[1762612763549,1.62837567,102080.0,102070.0,0.03175103]
[1762612763760,0.55223,102070.0,102060.0,0.00014702]
[1762612764061,1.63397666,102070.0,102060.0,0.00014702]
[1762612765060,1.63397666,102070.0,102060.0,0.00114702]
[1762612766861,1.63497666,102070.0,102060.0,0.00014702]
[1762612767447,0.67289,102050.0,102040.0,0.06127377]
[1762612767759,0.94724901,102050.0,102030.0,0.0262668]
[1762612767954,1.85604103,102040.0,102030.0,0.0262668]
[1762612768154,0.67289,102030.0,102020.0,0.11527377]
[1762612768354,1.49524103,102030.0,102020.0,0.18707137]
[1762612768553,1.16674375,102030.0,102020.0,0.18707137]
[1762612768755,1.16674375,102030.0,102020.0,0.08900697]
[1762612768962,1.16674375,102030.0,102020.0,0.36041236]
[1762612769353,1.16674375,102030.0,102020.0,0.11537236]
[1762612769956,1.16674375,102030.0,102020.0,0.36041236]
[1762612770260,1.16674375,102030.0,102020.0,0.08036539]
[1762612770461,1.16674375,102030.0,102020.0,0.08436539]
[1762612770858,1.16674375,102030.0,102020.0,0.08536539]
[1762612771059,1.16674375,102030.0,102020.0,0.08136539]
[1762612771362,1.16674375,102030.0,102020.0,0.32840539]
[1762612772058,1.16674375,102030.0,102020.0,0.08336539]
[1762612772259,1.16674375,102030.0,102020.0,0.32840539]
[1762612772654,1.16674375,102030.0,102020.0,0.08336539]
[1762612772962,1.16674375,102030.0,102020.0,0.32840539]
[1762612773159,1.16674375,102030.0,102020.0,0.08336539]
[1762612773548,1.16674375,102030.0,102020.0,0.003]
[1762612773754,1.16674375,102030.0,102020.0,0.02936539]
[1762612774061,1.16674375,102030.0,102020.0,0.003]
[1762612774853,1.60867478,102030.0,102020.0,0.003]
[1762612775049,1.75614591,102030.0,102020.0,0.003]
[1762612775559,0.67289,102020.0,102010.0,0.00014702]
[1762612775864,1.60839311,102020.0,102010.0,0.02796673]
[1762612776262,1.75542618,102020.0,102010.0,0.02796673]
[1762612776457,1.31349515,102020.0,102010.0,0.00014702]
[1762612776661,1.75542618,102020.0,102010.0,0.00014702]
[1762612776855,1.75542618,102020.0,102010.0,0.00314702]
[1762612777062,1.75542618,102020.0,102010.0,0.00514702]
[1762612777559,1.75542618,102020.0,102010.0,0.00014702]
[1762612777754,1.75742618,102020.0,102010.0,0.00014702]
[1762612778363,1.75742618,102020.0,102010.0,0.16304702]
[1762612778561,1.61039311,102020.0,102010.0,0.15822102]
[1762612778755,1.14884208,102020.0,102010.0,0.15822102]
[1762612779156,1.14884208,102020.0,102010.0,0.1860051]
[1762612779450,1.14884208,102020.0,102010.0,0.4310851]
[1762612779663,1.14884208,102020.0,102010.0,0.1860051]
[1762612779864,1.14884208,102020.0,102010.0,0.4310851]
[1762612780055,1.14884208,102020.0,102010.0,0.2842151]
[1762612780259,1.16846208,102020.0,102010.0,0.4312211]
[1762612780563,1.16746208,102020.0,102010.0,0.5292951]
[1762612780768,1.16746208,102020.0,102010.0,0.4312211]
[1762612781067,1.16646208,102020.0,102010.0,0.53028468]
[1762612781256,1.16646208,102020.0,102010.0,0.50351102]
[1762612781456,1.16646208,102020.0,102010.0,0.53128126]
[1762612781660,1.16646208,102020.0,102010.0,0.28620126]
[1762612782068,1.14684208,102020.0,102010.0,0.53128126]
[1762612782256,1.16646208,102020.0,102010.0,0.53128126]
[1762612782859,1.16646208,102020.0,102010.0,0.53028126]
[1762612783770,1.16646208,102020.0,102010.0,0.53128126]
[1762612785263,1.14684208,102020.0,102010.0,0.53128126]
[1762612786263,0.78604208,102020.0,102010.0,0.28620126]
[1762612786463,0.78604208,102020.0,102010.0,0.53128126]
[1762612786665,0.78604208,102020.0,102010.0,0.28620126]
[1762612786864,0.78604208,102020.0,102010.0,0.53128126]
[1762612787068,0.78604208,102020.0,102010.0,0.28620126]
[1762612787367,0.78604208,102020.0,102010.0,0.53128126]
[1762612787673,1.14684208,102020.0,102010.0,0.28620126]
[1762612787872,1.14684208,102020.0,102010.0,0.53128126]
[1762612788072,1.14684208,102020.0,102010.0,0.28620126]
[1762612788273,1.14684208,102020.0,102010.0,0.68060126]
[1762612788471,1.14684208,102020.0,102010.0,1.08858126]
[1762612789177,1.14684208,102020.0,102010.0,0.81573102]
[1762612789375,1.14684208,102020.0,102010.0,1.06081102]
[1762612791168,1.14684208,102020.0,102010.0,0.81573102]
[1762612791364,1.14684208,102020.0,102010.0,1.06081102]
[1762612792576,1.14684208,102020.0,102010.0,0.81573102]
[1762612792979,1.14684208,102020.0,102010.0,1.06081102]
[1762612793173,1.14684208,102020.0,102010.0,0.81573102]
[1762612793375,1.14684208,102020.0,102010.0,1.06081102]
[1762612793576,1.14684208,102020.0,102010.0,0.81573102]
[1762612793873,1.14684208,102020.0,102010.0,1.06081102]
[1762612794072,1.14684208,102020.0,102010.0,0.81573102]
[1762612794474,1.14684208,102020.0,102010.0,1.06081102]
[1762612796275,1.14684208,102020.0,102010.0,0.81573102]
[1762612796481,1.14684208,102020.0,102010.0,1.06081102]
[1762612797275,1.16646208,102020.0,102010.0,1.06081102]
[1762612798177,1.16646208,102020.0,102010.0,0.81573102]
[1762612798378,1.16646208,102020.0,102010.0,1.06081102]
[1762612799275,1.16646208,102020.0,102010.0,0.81573102]
[1762612799475,1.16646208,102020.0,102010.0,1.06081102]
[1762612800385,1.16646208,102020.0,102010.0,1.03081102]
[1762612800583,1.16646208,102020.0,102010.0,0.54093102]
[1762612800879,1.16646208,102020.0,102010.0,0.78601102]
[1762612801086,1.16646208,102020.0,102010.0,0.54093102]
[1762612801477,1.16646208,102020.0,102010.0,0.78601102]
[1762612803382,1.14684208,102020.0,102010.0,0.78601102]
[1762612803583,0.78203,102020.0,102010.0,0.81237641]
[1762612803986,0.5242,102020.0,102010.0,0.81237641]
[1762612804182,0.3608,102020.0,102010.0,1.05717641]
[1762612804386,0.3608,102020.0,102010.0,1.09218338]
[1762612804693,0.63331,102030.0,102020.0,0.3591743]
[1762612805082,0.63331,102030.0,102020.0,0.6042143]
[1762612805083,0.73867168,102030.0,102020.0,0.6042143]
[1762612805490,1.09947168,102030.0,102020.0,0.6042143]
[1762612805697,1.09947168,102030.0,102020.0,0.3591743]
[1762612805985,1.09947168,102030.0,102020.0,0.50615]
[1762612806187,1.64867758,102030.0,102020.0,0.26111]
[1762612806689,1.61361563,102030.0,102020.0,0.26111]
[1762612807193,0.62098,102020.0,102010.0,0.00314702]
[1762612807490,1.58557229,102020.0,102010.0,0.19943092]
[1762612807692,1.14364126,102020.0,102010.0,0.19943092]
[1762612807993,1.14364126,102020.0,102010.0,0.62297092]
[1762612809287,1.12402126,102020.0,102010.0,0.86805092]
[1762612809492,1.02937011,102030.0,102020.0,0.6198143]
[1762612809792,1.1574154,102030.0,102020.0,0.6198143]
[1762612810090,1.1574154,102030.0,102020.0,0.8648543]
[1762612810290,1.1574154,102030.0,102020.0,0.8668543]
[1762612810681,1.1574154,102030.0,102020.0,0.8648543]
[1762612810882,1.1574154,102030.0,102020.0,0.8668543]
[1762612811184,1.1574154,102030.0,102020.0,0.6218143]
[1762612811381,1.1574154,102030.0,102020.0,0.8668543]
[1762612811581,0.99411,102030.0,102020.0,0.89327957]
[1762612811784,0.84451,102030.0,102020.0,1.36247957]
[1762612812188,0.3746,102030.0,102020.0,1.39748654]
[1762612812488,0.60881,102030.0,102020.0,1.39748654]
[1762612813089,0.3608,102030.0,102020.0,1.39748654]
[1762612813285,0.43301713,102040.0,102030.0,0.24541]
[1762612813488,0.50531713,102040.0,102030.0,0.7887647]
[1762612813681,0.31641783,102040.0,102030.0,1.3945647]
[1762612813882,0.25124877,102050.0,102030.0,1.3945647]
[1762612814077,0.66856585,102050.0,102040.0,0.6905451]
[1762612814283,0.77968639,102050.0,102040.0,0.6905451]
[1762612814590,0.74443054,102050.0,102040.0,1.0722251]
[1762612814783,0.58103054,102050.0,102040.0,1.0722251]
[1762612815185,0.58103054,102050.0,102040.0,1.1880251]
[1762612815390,0.58103054,102050.0,102040.0,1.4330251]
[1762612815790,0.58103054,102050.0,102040.0,1.1880251]
[1762612815991,0.58103054,102050.0,102040.0,1.4330251]
[1762612816387,0.34633054,102050.0,102040.0,1.5826251]
[1762612816581,0.47005702,102060.0,102050.0,0.7290055]
[1762612816782,0.48967702,102060.0,102050.0,1.0898055]
[1762612816987,0.60286527,102060.0,102050.0,1.0898055]
[1762612817499,0.47005702,102060.0,102050.0,1.3347655]
[1762612817791,0.47005702,102060.0,102050.0,1.3357655]
[1762612817993,0.47005702,102060.0,102050.0,1.3367655]
[1762612818184,0.47005702,102060.0,102050.0,1.0918055]
[1762612818495,0.47005702,102060.0,102050.0,1.3367655]
[1762612819194,0.47005702,102060.0,102050.0,1.0918055]
[1762612819393,0.47005702,102060.0,102050.0,1.3367655]
[1762612819994,0.47005702,102060.0,102050.0,1.4349755]
[1762612820590,0.47005702,102060.0,102050.0,1.5845755]
[1762612821188,0.23435702,102060.0,102050.0,1.5845755]
[1762612821389,0.00014702,102060.0,102050.0,1.5845755]
[1762612822093,0.00014702,102060.0,102050.0,1.3396155]
[1762612822292,0.00014702,102060.0,102050.0,1.5844155]
[1762612822496,0.00014702,102060.0,102050.0,1.8293755]
[1762612824000,0.47005702,102060.0,102050.0,1.8293755]
[1762612824190,0.64074702,102060.0,102050.0,1.5844155]
[1762612824390,1.16412246,102060.0,102050.0,1.5844155]
[1762612824690,0.57112143,102060.0,102050.0,1.8293755]
[1762612827101,0.57112143,102060.0,102050.0,1.5844155]
[1762612827300,0.47569,102080.0,102070.0,0.13438]
[1762612827499,0.47569,102080.0,102070.0,1.1851363]
[1762612827705,0.59973154,102080.0,102070.0,1.1851363]
[1762612828498,0.60073154,102080.0,102070.0,1.5459363]
[1762612828705,0.74072154,102080.0,102070.0,1.5459363]
[1762612828898,1.18265257,102080.0,102070.0,1.4115563]
[1762612829102,1.54345257,102080.0,102070.0,1.0507563]
[1762612829300,1.54345257,102080.0,102070.0,0.5906263]
[1762612829496,1.54345257,102080.0,102060.0,0.09816992]
[1762612829497,0.61368,102070.0,102060.0,0.09817152]
[1762612829795,1.54314255,102070.0,102060.0,0.00014702]
[1762612830111,0.61368,102050.0,102040.0,0.9189749]
[1762612830406,0.73800844,102050.0,102040.0,0.9189749]
[1762612830607,1.17993947,102050.0,102040.0,0.9189749]
[1762612830804,1.17993947,102050.0,102040.0,0.5581749]
[1762612831812,1.17993947,102050.0,102040.0,0.5601749]
[1762612832306,1.17993947,102050.0,102040.0,0.5591749]
[1762612833212,1.17993947,102050.0,102040.0,0.5601749]
[1762612833412,1.17993947,102050.0,102040.0,0.46213]
[1762612833710,1.17993947,102050.0,102040.0,0.002]
[1762612833904,1.17993947,102050.0,102040.0,0.1000451]
[1762612834615,1.17993947,102050.0,102040.0,0.002]
[1762612834914,1.54073947,102050.0,102040.0,0.002]
[1762612835107,1.54073947,102050.0,102040.0,0.001]
[1762612836012,1.54073947,102050.0,102040.0,0.0980451]
[1762612836608,1.54073947,102050.0,102040.0,0.3230551]
[1762612837010,1.54073947,102050.0,102040.0,0.5581751]
[1762612837615,1.17993947,102050.0,102040.0,0.5591751]
[1762612838314,1.17993947,102050.0,102040.0,0.5601751]
[1762612839311,1.17993947,102050.0,102040.0,0.5591751]
[1762612839614,1.54073947,102050.0,102040.0,0.5601751]
[1762612840606,1.17993947,102050.0,102040.0,0.5601751]
[1762612841511,0.80477947,102050.0,102040.0,1.1535651]
[1762612841716,0.73077017,102050.0,102040.0,1.1535651]
[1762612841925,0.83473977,102050.0,102040.0,1.1535651]
[1762612842410,0.47583702,102060.0,102050.0,0.7907555]
[1762612842610,0.61382702,102060.0,102050.0,0.7907555]
[1762612843010,0.9753365,102060.0,102050.0,0.7907555]
[1762612843217,0.9753365,102060.0,102050.0,0.6563755]
[1762612843813,1.01055018,102060.0,102050.0,0.6563755]
[1762612844121,1.01055018,102060.0,102050.0,1.0507755]
[1762612846920,0.87256018,102060.0,102050.0,1.1789155]
[1762612847120,1.00568018,102060.0,102050.0,1.0507755]
[1762612847308,1.00568018,102060.0,102050.0,0.85453]
[1762612847511,1.4190731,102060.0,102050.0,0.4924355]
[1762612847708,1.36648018,102060.0,102050.0,0.3944]
[1762612848113,1.36648018,102060.0,102050.0,0.3954]
[1762612848525,1.36648018,102060.0,102050.0,0.62773]
[1762612849422,1.3312665,102060.0,102050.0,0.9490655]
[1762612849621,0.9704665,102060.0,102050.0,0.9480655]
[1762612849814,1.3312665,102060.0,102050.0,0.7032655]
[1762612850419,1.36648018,102060.0,102050.0,0.7032655]
[1762612851824,0.47118999,102080.0,102070.0,0.68198]
[1762612852125,0.82826446,102070.0,102060.0,1.1408054]
[1762612852523,0.71627017,102070.0,102060.0,1.1408054]
[1762612852725,0.82782013,102070.0,102060.0,1.1408054]
[1762612853119,0.46419,102080.0,102070.0,0.6817863]
[1762612853317,0.71927017,102080.0,102070.0,1.0425863]
[1762612853516,0.82962645,102080.0,102070.0,1.0425863]
[1762612853724,0.82862645,102080.0,102070.0,1.0425863]
[1762612855519,0.11035628,102080.0,102070.0,1.4315685]
[1762612855722,0.41339292,102100.0,102080.0,0.23515]
[1762612855723,0.58296,102100.0,102080.0,0.23515]
[1762612855923,0.57148,102100.0,102090.0,0.3661678]
[1762612856225,0.67387091,102100.0,102090.0,0.3661678]
[1762612856425,0.92895108,102100.0,102090.0,0.3661678]
[1762612856618,0.92895108,102100.0,102090.0,0.7269678]
[1762612857327,0.93095108,102100.0,102090.0,0.7269678]
[1762612858719,0.93195108,102100.0,102090.0,0.7269678]
[1762612859620,0.10539091,102100.0,102090.0,0.7269678]
[1762612859824,0.137,102100.0,102090.0,0.9718478]
[1762612860025,0.137,102100.0,102090.0,0.8736378]
[1762612860325,0.001,102100.0,102090.0,1.4736378]
[1762612860519,0.001,102100.0,102090.0,1.50206307]
[1762612861116,0.001,102100.0,102090.0,1.25718307]
[1762612861312,0.001,102100.0,102090.0,1.2307578]
[1762612861521,0.001,102100.0,102090.0,1.4756378]
[1762612861723,0.57248,102100.0,102090.0,0.8756378]
[1762612861928,0.67831857,102100.0,102090.0,0.6307578]
[1762612862228,0.67731857,102100.0,102090.0,0.6317578]
[1762612862432,0.35616,102110.0,102090.0,0.7086703]
[1762612862626,0.93228,102110.0,102090.0,0.3658]
[1762612862931,0.93228,102110.0,102090.0,0.61068]
[1762612863224,0.93228,102110.0,102100.0,0.0757125]
[1762612863823,1.29684379,102110.0,102100.0,0.0757125]
[1762612865024,1.39482169,102110.0,102100.0,0.0757125]
[1762612865625,1.39482169,102110.0,102100.0,0.0767125]
[1762612865927,1.39482169,102110.0,102100.0,0.0777125]
[1762612867423,1.39482169,102110.0,102100.0,0.4721125]
[1762612868027,1.39482169,102110.0,102100.0,0.3964]
[1762612868439,1.40482168,102110.0,102100.0,0.3964]
[1762612868728,1.40482168,102110.0,102100.0,0.1516]
[1762612869429,1.40482168,102110.0,102100.0,0.1496]
[1762612869923,0.22216,102090.0,102080.0,0.09814722]
[1762612870120,1.0302771,102090.0,102080.0,0.29160722]
[1762612870324,1.13277055,102090.0,102080.0,0.29160722]
[1762612872131,1.13277055,102090.0,102080.0,0.29260722]
[1762612872331,1.38785072,102090.0,102080.0,0.19460702]
[1762612872532,1.74865072,102090.0,102080.0,0.00214702]
[1762612872936,1.75865071,102090.0,102080.0,0.00214702]